fUSD/lending_fUSD_20240913
["ID","MTS","AMOUNT","RATE_DAILY","PERIOD"]
[337988067,1726228232360,-1487.65788,0.00012253,2]
[337988068,1726228232381,-1706.98,0.00012253,2]
[337988077,1726228238127,-332.71547741,0.00012253,2]
[337988078,1726228238138,-4445.24507045,0.00012253,2]
[337988079,1726228238181,-504.46416423,0.00012253,2]
[337988080,1726228238211,-559.22198994,0.00012253,2]
[337988081,1726228238234,-394.12782113,0.00012253,2]
[337988082,1726228238244,-19584.17613878,0.00012253,2]
[337988083,1726228238255,-564.662132,0.00012253,2]
[337988084,1726228238290,-21779.21936827,0.00012253,2]
[337988085,1726228238302,-1262.14798967,0.00012253,2]
[337988086,1726228238312,-585.41820824,0.00012253,2]
[337988087,1726228238398,-5000.0,0.00012253,2]
[337988088,1726228238409,-1595.48310882,0.00012253,2]
[337988089,1726228238420,-8928.78405659,0.00012253,2]
[337988090,1726228238430,-9571.39362899,0.00012253,2]
[337988091,1726228238441,-324.6246798,0.00012253,2]
[337988092,1726228238451,-448.7075297,0.00012253,2]
[337988093,1726228238463,-3006.44051846,0.00012253,2]
[337988094,1726228238473,-7442.804616,0.00012253,2]
[337988095,1726228238485,-1470.87908501,0.00012253,2]
[337988114,1726228238687,-2109.44460508,0.00012253,2]
[337988116,1726228238701,-1879.79073718,0.00012253,2]
[337988238,1726228240074,-39934.1296875,0.00012253,2]
[337988240,1726228240086,-3033.07094716,0.00012253,2]
[337988242,1726228240097,-311.6,0.00012253,2]
[337988249,1726228240180,-1335.0,0.00012253,2]
[337988251,1726228240191,-1784.08508992,0.00012253,2]
[337988256,1726228240234,-533.82,0.00012253,2]
[337988257,1726228240245,-74555.12291889,0.00012253,2]
[337988259,1726228240255,-42513.1815975,0.00012253,2]
[337988263,1726228240288,-710.60557043,0.00012253,2]
[337988387,1726228242028,-278.90148228,0.00012253,2]
[337988389,1726228242040,-695.95800116,0.00012253,2]
[337988391,1726228242052,-2495.58714316,0.00012253,2]
[337988507,1726228243187,-566.35561271,0.00012253,2]
[337988509,1726228243198,-473.25526323,0.00012253,2]
[337988582,1726228243963,-16890.90505468,0.00012253,2]
[337988584,1726228243978,-35375.25027485,0.00012253,2]
[337988586,1726228243987,-7500.0,0.00012253,2]
[337988588,1726228243996,-304.54606855,0.00012254,2]
[337988589,1726228244005,-150.35374544,0.00012272,2]
[337988591,1726228244015,-177.32746702,0.00012272,2]
[337988593,1726228244024,-150.19473469,0.00012273,2]
[337988595,1726228244033,-160.20771532,0.00012273,2]
[337988597,1726228244043,-194.28034287,0.00012273,2]
[337988599,1726228244052,-219.6,0.0001228,2]
[337988601,1726228244061,-299.99,0.0001228,2]
[337988603,1726228244071,-528.84,0.0001228,2]
[337988605,1726228244081,-1384.34742,0.0001232,2]
[337988607,1726228244091,-499.99,0.00012343,2]
[337988609,1726228244101,-773.74126147,0.00012343,2]
[337988611,1726228244111,-773.74126147,0.00012343,2]
[337988613,1726228244120,-773.74126147,0.00012343,2]
[337988615,1726228244130,-150.56,0.00012343,2]
[337988617,1726228244141,-43249.37002205,0.00012353,2]
[337988619,1726228244151,-787576.56281109,0.00012354,2]
[337988622,1726228244165,-38874.24022035,0.00012354,2]
[337988625,1726228244175,-17155.65647252,0.00012354,2]
[337988628,1726228244186,-44508.01508465,0.00012354,2]
[337988805,1726228246268,-432.05724792,0.00012354,2]
[337988806,1726228246284,-8499.85506002,0.00012354,2]
[337988807,1726228246295,-16288.40638518,0.00012354,2]
[337988808,1726228246307,-4011.40893523,0.00012354,2]
[337988809,1726228246351,-2066.50353201,0.00012354,2]
[337988810,1726228246364,-612.34305062,0.00012354,2]
[337988811,1726228246375,-5852.2,0.00012354,2]
[337989953,1726228266376,2000.0,0.000116,4]
[337989954,1726228268467,4000.0,0.000117,4]
[337989955,1726228270566,6000.0,0.000118,4]
[337989956,1726228272718,8100.0,0.000119,4]
[337989957,1726228279726,11037.0951,0.00012153,2]
[337989958,1726228307008,245000.0,0.00012153,2]
[337989959,1726228307290,1000.0,0.00012153,2]
[337989960,1726228308914,528.73,0.00011834,2]
[337989962,1726228379093,100000.0,0.00012153,2]
[337989963,1726228395384,162.16,0.00011518,2]
[337989964,1726228423341,250.0,0.00011518,2]
[337989965,1726228427164,421.39411001,0.00012153,2]
[337989966,1726228441399,300.0,0.00012164,2]
[337989967,1726228454176,-232.67818431,0.00012165,2]
[337989968,1726228455568,-212.98619274,0.00012165,2]
[337989969,1726228455970,-200.0,0.00012165,2]
[337989970,1726228456421,-197.06,0.00012165,2]
[337989971,1726228457000,-179.8398969,0.00012165,2]
[337989972,1726228457468,-166.0695372,0.00012165,2]
[337989973,1726228457985,-161.15,0.00012165,2]
[337989974,1726228458337,151.25,9.35e-05,2]
[337989975,1726228458500,-155.36,0.00012165,2]
[337989976,1726228458917,-155.36,0.00012165,2]
[337989977,1726228459530,-150.0,0.00012165,2]
[337989978,1726228459887,-150.0,0.00012165,2]
[337989979,1726228470347,300.0,0.00010959,2]
[337989980,1726228477212,200.0,0.00011164,2]
[337989981,1726228501299,300.0,0.00012164,2]
[337989982,1726228535668,100000.0,0.00012153,2]
[337989983,1726228621461,300.0,0.00012164,2]
[337989984,1726228626264,5941.6019,0.00012153,2]
[337989985,1726228654707,902.79,9.579e-05,2]
[337989986,1726228655124,902.79,0.00011843,2]
[337989987,1726228679847,500.0,0.00011164,2]
[337989988,1726228686272,72955.1445,0.00012153,2]
[337989989,1726228692067,2062.3757,0.00012153,2]
[337989990,1726228741272,300.0,0.00012164,2]
[337989991,1726228774442,2926.93548177,0.00012153,2]
[337989993,1726228789865,812.43,0.00010959,2]
[337989994,1726228798168,150.0,0.00012048,2]
[337989995,1726228798209,150.0,0.0001205,2]
[337989996,1726228801396,300.0,0.00012164,2]
[337990000,1726228834946,500.0,0.00011164,2]
[337990001,1726228836970,577.01,0.00011492,2]
[337990004,1726228861535,300.0,0.00012164,2]
[337990005,1726228910919,199.99,0.00011471,2]
[337990006,1726228947621,206.79,0.00010959,2]
[337990007,1726229016730,1500.0,0.00012154,2]
[337990008,1726229027206,250.0,0.00011317,2]
[337990009,1726229035106,178.34,0.00011851,2]
[337990010,1726229041284,300.0,0.00012164,2]
[337990011,1726229101271,300.0,0.00012164,2]
[337990012,1726229103121,24713.65,0.00012003,2]
[337990013,1726229129585,2358.9,0.00012153,2]
[337990014,1726229140935,852.62,9.394e-05,2]
[337990015,1726229141410,852.62,0.00011658,2]
[337990016,1726229161364,300.0,0.00012164,2]
[337990017,1726229199897,2634.24193362,0.00012153,2]
[337990018,1726229227305,1200.0,0.000116,4]
[337990019,1726229229429,2400.0,0.000117,4]
[337990020,1726229231520,3600.0,0.000118,4]
[337990021,1726229234054,4800.0,0.000119,4]
[337990022,1726229281344,300.0,0.00012164,2]
[337990023,1726229333760,-796.0,0.00012165,2]
[337990024,1726229333786,-796.0,0.00012165,2]
[337990025,1726229333812,-796.0,0.00012165,2]
[337990026,1726229333838,-600.78944199,0.00012165,2]
[337990027,1726229333874,-195.21055801,0.00012165,2]
[337990028,1726229333900,-796.0,0.00012165,2]
[337990029,1726229333927,-796.0,0.00012165,2]
[337990030,1726229333956,-150.0,0.00012165,2]
[337990031,1726229333985,-1051.57888398,0.00012174,2]
[337990032,1726229354826,538.39,0.00011304,2]
[337990041,1726229434790,-448.42111602,0.00012174,2]
[337990042,1726229434799,-1500.0,0.00012174,2]
[337990043,1726229434809,-1500.0,0.00012176,2]
[337990044,1726229434819,-1500.0,0.00012186,2]
[337990045,1726229434828,-1155.00986551,0.000122,2]
[337990046,1726229434837,-1500.0,0.00012211,2]
[337990047,1726229434846,-300.0,0.00012211,2]
[337990048,1726229434855,-1500.0,0.00012212,2]
[337990049,1726229434865,-1531.70209,0.0001223,2]
[337990050,1726229434874,-399.6416,0.0001223,2]
[337990051,1726229434885,-150.0,0.0001224,2]
[337990052,1726229434894,-150.99,0.00012243,2]
[337990053,1726229434904,-499.99,0.00012243,2]
[337990054,1726229434913,-391.88821597,0.00012243,2]
[337990055,1726229434922,-150.0,0.00012246,2]
[337990056,1726229434931,-2365.3,0.00012246,2]
[337990057,1726229434940,-396.29,0.00012246,2]
[337990058,1726229434950,-5017.36,0.00012246,2]
[337990059,1726229434959,-644.70960488,0.00012246,2]
[337990060,1726229434971,-588.36553849,0.00012246,2]
[337990061,1726229434990,-1207.41485663,0.00012246,2]
[337990062,1726229435002,-1500.0,0.00012247,2]
[337990063,1726229435016,-1500.0,0.00012248,2]
[337990064,1726229435029,-150.0,0.00012252,2]
[337990065,1726229435040,-274.76679836,0.00012253,2]
[337990066,1726229435051,-152.79080492,0.00012253,2]
[337990067,1726229435063,-2754.46155935,0.00012253,2]
[337990068,1726229435077,-1163.69989659,0.00012253,2]
[337990069,1726229435090,-500.0,0.00012253,2]
[337990070,1726229435101,-6113.19958908,0.00012253,2]
[337990071,1726229435112,-35050.53942025,0.00012253,2]
[337990073,1726229435126,-393.8723345,0.00012253,2]
[337990076,1726229435140,-3186.53480063,0.00012253,2]
[337990078,1726229435153,-6036.6456329,0.00012253,2]
[337990080,1726229435166,-752.17210597,0.00012253,2]
[337990082,1726229435180,-555.249,0.00012253,2]
[337990083,1726229435194,-1674.56555788,0.00012253,2]
[337990084,1726229435206,-4507.06363913,0.00012253,2]
[337990085,1726229435313,-406.46096392,0.00012253,2]
[337990086,1726229435325,-1249.78872132,0.00012253,2]
[337990087,1726229435338,-2700.0,0.00012253,2]
[337990088,1726229435350,-845.87545876,0.00012253,2]
[337990089,1726229435361,-1028.79,0.00012253,2]
[337990090,1726229435373,-9669.50989184,0.00012253,2]
[337990091,1726229435386,-871.275,0.00012253,2]
[337990092,1726229435398,-404.0,0.00012253,2]
[337990093,1726229438265,-1169.55400002,0.00012253,2]
[337990094,1726229438278,-521.17192969,0.00012253,2]
[337990095,1726229438433,-353.01173433,0.00012253,2]
[337990096,1726229438445,-526.17759152,0.00012253,2]
[337990097,1726229438456,-13593.5279083,0.00012253,2]
[337990098,1726229438482,-118853.64011996,0.00012253,2]
[337990099,1726229438493,-1000.0,0.00012253,2]
[337990100,1726229438505,-792.27727794,0.00012253,2]
[337990101,1726229438538,-6707.72272206,0.00012253,2]
[337990102,1726229438548,-702.14221915,0.00012254,2]
[337990103,1726229438559,-328.28053857,0.00012254,2]
[337990104,1726229438569,-796.0,0.00012258,2]
[337990105,1726229438578,-150.19877036,0.00012273,2]
[337990106,1726229438588,-539.86947452,0.00012273,2]
[337990107,1726229438597,-500.0,0.00012273,2]
[337990108,1726229438608,-1500.0,0.00012273,2]
[337990109,1726229438619,-150.0,0.00012277,2]
[337990110,1726229438630,-1500.0,0.00012278,2]
[337990111,1726229438640,-1500.0,0.00012299,2]
[337990112,1726229438650,-1500.0,0.00012309,2]
[337990113,1726229438661,-150.0,0.00012316,2]
[337990114,1726229438671,-1500.0,0.00012323,2]
[337990115,1726229438681,-311.27857499,0.00012342,2]
[337990116,1726229438691,-386.87063074,0.00012343,2]
[337990118,1726229438701,-386.87063074,0.00012343,2]
[337990120,1726229438710,-386.87063074,0.00012343,2]
[337990122,1726229438720,-150.56,0.00012343,2]
[337990124,1726229438729,-500.0,0.00012353,2]
[337990126,1726229438739,-500.0,0.00012353,2]
[337990128,1726229438749,-153.11150613,0.00012353,2]
[337990130,1726229438759,-548.24980589,0.00012353,2]
[337990132,1726229438770,-618.36080821,0.00012353,2]
[337990134,1726229438782,-28118.45516104,0.00012353,2]
[337990136,1726229438792,-961.0,0.00012353,2]
[337990138,1726229438802,-684.78362116,0.00012353,2]
[337990140,1726229438812,-1429.21469325,0.00012353,2]
[337990142,1726229438822,-26733.74548784,0.00012353,2]
[337990144,1726229438832,-2326756.98235343,0.00012354,2]
[337990147,1726229438844,-1244.54999999,0.00012354,2]
[337990149,1726229438856,-318.63456445,0.00012354,2]
[337990151,1726229438868,-424.79146568,0.00012354,2]
[337990272,1726229440271,-770653.10852579,0.00012354,2]
[337990274,1726229440282,-2000.0,0.00012354,2]
[337990276,1726229440292,-200.0,0.00012354,2]
[337990278,1726229440301,-200.0,0.00012354,2]
[337990280,1726229440311,-200.0,0.00012354,2]
[337990282,1726229440321,-160.20771689,0.00012373,2]
[337990284,1726229440331,-160.0,0.00012373,2]
[337990286,1726229440341,-160.20771702,0.00012373,2]
[337990288,1726229440350,-154.19992606,0.00012373,2]
[337990290,1726229440360,-150.16161751,0.00012373,2]
[337990292,1726229440370,-160.22369288,0.00012373,2]
[337990294,1726229440380,-200.25964428,0.00012373,2]
[337990296,1726229440390,-150.19473318,0.00012373,2]
[337990298,1726229440400,-500.0,0.00012373,2]
[337990300,1726229440409,-600.0,0.00012373,2]
[337990302,1726229440418,-155.20122435,0.00012373,2]
[337990304,1726229440428,-400.38227572,0.00012373,2]
[337990306,1726229440437,-196.18415692,0.00012373,2]
[337990308,1726229440448,-167.0,0.00012445,2]
[337990310,1726229440458,-2634.24193353,0.00012458,2]
[337990312,1726229440468,-200.0,0.00012478,2]
[337990314,1726229440477,-200.0,0.00012478,2]
[337990316,1726229440487,-200.0,0.00012478,2]
[337990318,1726229440497,-200.0,0.00012602,2]
[337990320,1726229440506,-200.0,0.00012602,2]
[337990322,1726229440516,-167.0,0.00012644,2]
[337990324,1726229440526,-514.240107,0.000127,2]
[337990326,1726229440535,-542.06,0.000127,2]
[337990328,1726229440545,-422.33,0.000127,2]
[337990330,1726229440555,-340.74,0.000127,2]
[337990332,1726229440565,-6000.0,0.000127,4]
[337990334,1726229440574,-538.39,0.00012717,2]
[337990336,1726229440584,-200.0,0.00012728,2]
[337990338,1726229440594,-200.0,0.00012728,2]
[337990340,1726229440603,-1531.70209,0.0001276,2]
[337990342,1726229440613,-2634.24193353,0.00012763,2]
[337990344,1726229440623,-152.67589979,0.00012799,2]
[337990346,1726229440632,-2987.82704286,0.00012799,2]
[337990348,1726229440642,-1022.05906689,0.000128,2]
[337990350,1726229440652,-1200.0,0.000128,4]
[337990352,1726229440661,-200.0,0.00012856,2]
[337990354,1726229440671,-200.0,0.00012856,2]
[337990356,1726229440681,-1200.0,0.000129,4]
[337990358,1726229440690,-796.0,0.00012903,2]
[337990360,1726229440700,-577.01,0.00012928,2]
[337990362,1726229440709,-500.0,0.00012935,2]
[337990364,1726229440718,-500.0,0.00012935,2]
[337990367,1726229440728,-500.0,0.00012935,2]
[337990369,1726229440738,-500.0,0.00012935,2]
[337990371,1726229440747,-500.0,0.00012935,2]
[337990373,1726229440757,-390.3837,0.00012935,2]
[337990375,1726229440766,-500.0,0.00012935,2]
[337990377,1726229440776,-500.0,0.00012935,2]
[337990379,1726229440785,-500.0,0.00012935,2]
[337990381,1726229440794,-500.0,0.00012935,2]
[337990383,1726229440804,-500.0,0.00012935,2]
[337990385,1726229440814,-500.0,0.00012935,2]
[337990387,1726229440824,-500.0,0.00012935,2]
[337990389,1726229440834,-500.0,0.00012935,2]
[337990391,1726229440843,-500.0,0.00012935,2]
[337990393,1726229440853,-500.0,0.00012935,2]
[337990395,1726229440863,-500.0,0.00012935,2]
[337990397,1726229440873,-500.0,0.00012935,2]
[337990399,1726229440883,-500.0,0.00012935,2]
[337990401,1726229440892,-500.0,0.00012935,2]
[337990403,1726229440901,-500.0,0.00012935,2]
[337990405,1726229440911,-500.0,0.00012935,2]
[337990407,1726229440921,-500.0,0.00012935,2]
[337990409,1726229440931,-500.0,0.00012935,2]
[337990411,1726229440940,-500.0,0.00012935,2]
[337990413,1726229440950,-179.9254,0.00012935,2]
[337990415,1726229440959,-493.899553,0.00012962,2]
[337990417,1726229440969,-500.0,0.00012973,2]
[337990419,1726229440979,-5883.5585051,0.00012996,2]
[337990421,1726229440989,-5440.0153062,0.00012996,2]
[337990423,1726229440999,-996.8182185,0.00012996,2]
[337990425,1726229441008,-1110.28091693,0.00012999,3]
[337990427,1726229441019,-1240.95750777,0.00012999,3]
[337990429,1726229441029,-1240.95750778,0.00012999,3]
[337990431,1726229441039,-7326617.1406442,0.00013,2]
[337990433,1726229441049,-368927.26790163,0.00013,2]
[337990435,1726229441059,-151.0,0.00013,2]
[337990437,1726229441069,-151.0,0.00013,2]
[337990439,1726229441079,-151.0,0.00013,2]
[337990441,1726229441089,-151.0,0.00013,2]
[337990443,1726229441103,-151.0,0.00013,2]
[337990445,1726229441113,-151.0,0.00013,2]
[337990447,1726229441124,-153.263718,0.00013,2]
[337990449,1726229441134,-152.445303,0.00013,2]
[337990451,1726229441145,-151.0,0.00013,2]
[337990453,1726229441155,-151.0,0.00013,2]
[337990455,1726229441164,-151.0,0.00013,2]
[337990457,1726229441175,-151.0,0.00013,2]
[337990459,1726229441186,-151.0,0.00013,2]
[337990461,1726229441196,-151.0,0.00013,2]
[337990462,1726229441205,-151.150605,0.00013,2]
[337990464,1726229441215,-151.0,0.00013,2]
[337990466,1726229441225,-151.0,0.00013,2]
[337990468,1726229441235,-203.204353,0.00013,2]
[337990470,1726229441244,-203.204353,0.00013,2]
[337990472,1726229441254,-203.204353,0.00013,2]
[337990474,1726229441266,-151.0,0.00013,2]
[337990476,1726229441276,-151.0,0.00013,2]
[337990478,1726229441285,-203.204353,0.00013,2]
[337990480,1726229441295,-151.0,0.00013,2]
[337990482,1726229441305,-151.0,0.00013,2]
[337990484,1726229441314,-151.0,0.00013,2]
[337990486,1726229441324,-151.0,0.00013,2]
[337990488,1726229441334,-151.0,0.00013,2]
[337990490,1726229441344,-151.0,0.00013,2]
[337990492,1726229441354,-168.721236,0.00013,2]
[337990494,1726229441364,-151.0,0.00013,2]
[337990496,1726229441374,-151.0,0.00013,2]
[337990498,1726229441384,-151.0,0.00013,2]
[337990500,1726229441394,-151.0,0.00013,2]
[337990502,1726229441404,-151.0,0.00013,2]
[337990504,1726229441414,-151.0,0.00013,2]
[337990506,1726229441424,-292.98576,0.00013,2]
[337990508,1726229441434,-254.973321,0.00013,2]
[337990510,1726229441444,-254.973321,0.00013,2]
[337990512,1726229441454,-254.973321,0.00013,2]
[337990514,1726229441464,-254.973321,0.00013,2]
[337990516,1726229441475,-151.0,0.00013,2]
[337990518,1726229441484,-151.0,0.00013,2]
[337990520,1726229441494,-151.0,0.00013,2]
[337990522,1726229441504,-156.265887,0.00013,2]
[337990555,1726229441828,-151.0,0.00013,2]
[337990558,1726229441848,-151.0,0.00013,2]
[337990561,1726229441865,-151.0,0.00013,2]
[337990563,1726229441875,-151.0,0.00013,2]
[337990565,1726229441884,-152.091753,0.00013,2]
[337990567,1726229441893,-220.535112,0.00013,2]
[337990569,1726229441902,-220.535112,0.00013,2]
[337990571,1726229441912,-151.653787,0.00013,2]
[337990573,1726229441922,-151.0,0.00013,2]
[337990574,1726229441931,-151.0,0.00013,2]
[337990576,1726229441940,-220.535112,0.00013,2]
[337990578,1726229441949,-220.535112,0.00013,2]
[337990580,1726229441959,-151.0,0.00013,2]
[337990582,1726229441968,-151.0,0.00013,2]
[337990584,1726229441977,-151.0,0.00013,2]
[337990586,1726229441987,-151.0,0.00013,2]
[337990588,1726229441996,-151.0,0.00013,2]
[337990590,1726229442005,-151.0,0.00013,2]
[337990592,1726229442015,-151.0,0.00013,2]
[337990594,1726229442025,-151.0,0.00013,2]
[337990596,1726229442034,-957.131107,0.00013,2]
[337990598,1726229442043,-957.131107,0.00013,2]
[337990600,1726229442053,-151.0,0.00013,2]
[337990602,1726229442062,-151.0,0.00013,2]
[337990604,1726229442071,-957.131107,0.00013,2]
[337990606,1726229442080,-957.131107,0.00013,2]
[337990608,1726229442091,-151.0,0.00013,2]
[337990610,1726229442102,-151.0,0.00013,2]
[337990611,1726229442111,-278.685653,0.00013,2]
[337990613,1726229442120,-258.763494,0.00013,2]
[337990615,1726229442130,-258.763494,0.00013,2]
[337990617,1726229442140,-258.763494,0.00013,2]
[337990619,1726229442149,-258.763494,0.00013,2]
[337990621,1726229442159,-153.656298,0.00013,2]
[337990623,1726229442169,-161.43078,0.00013,2]
[337990625,1726229442178,-151.0,0.00013,2]
[337990627,1726229442187,-151.0,0.00013,2]
[337990629,1726229442196,-151.0,0.00013,2]
[337990631,1726229442205,-151.0,0.00013,2]
[337990633,1726229442215,-152.28825,0.00013,2]
[337990634,1726229442224,-151.335219,0.00013,2]
[337990636,1726229442234,-151.0,0.00013,2]
[337990638,1726229442243,-151.0,0.00013,2]
[337990640,1726229442253,-325.756552,0.00013,2]
[337990642,1726229442263,-151.0,0.00013,2]
[337990644,1726229442272,-325.756552,0.00013,2]
[337990646,1726229442282,-154.657066,0.00013,2]
[337990648,1726229442291,-325.756552,0.00013,2]
[337990650,1726229442301,-325.756552,0.00013,2]
[337990652,1726229442310,-1600.203243,0.00013,2]
[337990654,1726229442320,-1600.203243,0.00013,2]
[337990656,1726229442329,-151.0,0.00013,2]
[337990658,1726229442338,-151.0,0.00013,2]
[337990660,1726229442347,-1600.203243,0.00013,2]
[337990661,1726229442356,-1600.203243,0.00013,2]
[337990663,1726229442366,-151.0,0.00013,2]
[337990665,1726229442375,-151.0,0.00013,2]
[337990667,1726229442384,-151.0,0.00013,2]
[337990669,1726229442393,-151.0,0.00013,2]
[337990671,1726229442402,-188.910781,0.00013,2]
[337990673,1726229442412,-188.910781,0.00013,2]
[337990675,1726229442421,-188.910781,0.00013,2]
[337990677,1726229442432,-188.910781,0.00013,2]
[337990679,1726229442442,-155.371329,0.00013,2]
[337990681,1726229442452,-155.371329,0.00013,2]
[337990683,1726229442461,-155.371329,0.00013,2]
[337990684,1726229442470,-155.371329,0.00013,2]
[337990686,1726229442479,-151.0,0.00013,2]
[337990688,1726229442488,-151.0,0.00013,2]
[337990690,1726229442497,-151.0,0.00013,2]
[337990692,1726229442506,-151.0,0.00013,2]
[337990694,1726229442516,-151.0,0.00013,2]
[337990696,1726229442525,-151.0,0.00013,2]
[337990698,1726229442534,-151.43953,0.00013,2]
[337990700,1726229442544,-1718.285418,0.00013,2]
[337990702,1726229442553,-1718.285418,0.00013,2]
[337990704,1726229442562,-1718.285418,0.00013,2]
[337990706,1726229442571,-1718.285418,0.00013,2]
[337990708,1726229442580,-2969.358482,0.00013,2]
[337990710,1726229442589,-2969.358482,0.00013,2]
[337990712,1726229442598,-2969.358482,0.00013,2]
[337990714,1726229442607,-2969.358482,0.00013,2]
[337990716,1726229442617,-151.0,0.00013,2]
[337990718,1726229442626,-151.265644,0.00013,2]
[337990719,1726229442634,-151.0,0.00013,2]
[337990721,1726229442643,-151.0,0.00013,2]
[337990723,1726229442652,-995.72,0.00013,2]
[337990725,1726229442661,-151.0,0.00013,2]
[337990727,1726229442671,-151.0,0.00013,2]
[337990729,1726229442679,-151.0,0.00013,2]
[337990731,1726229442688,-151.0,0.00013,2]
[337990733,1726229442697,-151.42621,0.00013,2]
[337990734,1726229442707,-1085.999395,0.00013,2]
[337990736,1726229442716,-1085.999395,0.00013,2]
[337990738,1726229442725,-151.0,0.00013,2]
[337990740,1726229442735,-151.0,0.00013,2]
[337990742,1726229442744,-1085.999395,0.00013,2]
[337990744,1726229442754,-1085.999395,0.00013,2]
[337990746,1726229442762,-151.0,0.00013,2]
[337990748,1726229442776,-151.0,0.00013,2]
[337990749,1726229442785,-151.0,0.00013,2]
[337990751,1726229442795,-151.0,0.00013,2]
[337990753,1726229442803,-151.0,0.00013,2]
[337990755,1726229442812,-151.0,0.00013,2]
[337990757,1726229442821,-151.0,0.00013,2]
[337990759,1726229442830,-151.0,0.00013,2]
[337990761,1726229442839,-218.950779,0.00013,2]
[337990762,1726229442848,-151.0,0.00013,2]
[337990764,1726229442857,-151.0,0.00013,2]
[337990766,1726229442866,-415.946871,0.00013,2]
[337990768,1726229442876,-415.946871,0.00013,2]
[337990770,1726229442885,-415.946871,0.00013,2]
[337990772,1726229442894,-415.946871,0.00013,2]
[337990774,1726229442903,-171.432673,0.00013,2]
[337990776,1726229442913,-171.432673,0.00013,2]
[337990778,1726229442922,-241.486086,0.00013,2]
[337990780,1726229442931,-171.432673,0.00013,2]
[337990782,1726229442940,-171.432673,0.00013,2]
[337990784,1726229442950,-331.48344,0.00013,2]
[337990786,1726229442959,-331.48344,0.00013,2]
[337990788,1726229442968,-194.67151,0.00013,2]
[337990789,1726229442977,-194.67151,0.00013,2]
[337990790,1726229442987,-331.48344,0.00013,2]
[337990791,1726229442996,-331.48344,0.00013,2]
[337990792,1726229443005,-194.67151,0.00013,2]
[337990793,1726229443014,-194.67151,0.00013,2]
[337990794,1726229443028,-4366.153152,0.00013,2]
[337990795,1726229443038,-4366.153152,0.00013,2]
[337990797,1726229443047,-251.705341,0.00013,2]
[337990799,1726229443056,-251.705341,0.00013,2]
[337990801,1726229443066,-251.705341,0.00013,2]
[337990802,1726229443074,-251.705341,0.00013,2]
[337990803,1726229443083,-529.05,0.00013,2]
[337990804,1726229443095,-151.0,0.00013,2]
[337990805,1726229443104,-151.470775,0.00013,2]
[337990806,1726229443113,-151.0,0.00013,2]
[337990809,1726229443122,-151.0,0.00013,2]
[337990811,1726229443132,-151.0,0.00013,2]
[337990813,1726229443141,-151.0,0.00013,2]
[337990815,1726229443150,-151.0,0.00013,2]
[337990817,1726229443159,-151.0,0.00013,2]
[337990819,1726229443168,-245.417971,0.00013,2]
[337990821,1726229443179,-245.417971,0.00013,2]
[337990824,1726229443188,-245.417971,0.00013,2]
[337990827,1726229443198,-245.417971,0.00013,2]
[337990830,1726229443207,-151.0,0.00013,2]
[337990832,1726229443216,-151.0,0.00013,2]